Cogmind - Beta 13 @@@ ROGUE MODE // 2024.04.03 @ 20:30:56 Player: lazy_engineer Result: Destroyed by Piercing Trap Performance ------------- Evolutions (0) 0 Regions Visited (3) 600 Robots Destroyed (36) 180 Value Destroyed (939) 939 Prototype IDs (0) 0 Alien Tech Used (0) 0 Bonus (30) 30 TOTAL SCORE: 1749 Bonus ------- Follower Combat Kills 30 Cogmind --------- Core Integrity 0/250 Matter 300/300 Energy 91/100 System Corruption 0% Temperature Cool (2) Movement Walking (120) Location -10/Subcaves Parts ------- > --- POWER (1) -------- (None) > --- PROPULSION (2) --- Carbon-fiber Leg Carbon-fiber Leg > --- UTILITY (2) ------ Small Storage Unit Signal Interpreter > --- WEAPON (2) ------- Battle Cannon Ripper > --- INVENTORY (8) ---- Huge Storage Unit Sensor Array Experimental Sensor Array Signal Interpreter Hacking Suite Hacking Suite Subdweller Machine Gun Datajack Peak State ------------ > --- POWER ------------ Light Angular Momentum Engine > --- PROPULSION ------- Carbon-fiber Leg Carbon-fiber Leg > --- UTILITY ---------- Small Storage Unit Signal Interpreter > --- WEAPON ----------- Battle Rifle Subdweller Machine Gun > --- INVENTORY -------- Huge Storage Unit Sensor Array Experimental Sensor Array Signal Interpreter Hacking Suite Hacking Suite Datajack Mining Laser [Rating: 19] Favorites ----------- Power Ion Engine Engine Ion Engine Propulsion Light Treads Treads Light Treads Leg Carbon-fiber Leg Wheel Wheel Utility Small Storage Unit Device Seismic Detector Storage Small Storage Unit Processor Signal Interpreter Weapon Subdweller Machine Gun Ballistic Gun Subdweller Machine Gun Ballistic Cannon Light Cannon Launcher Grenade Launcher Special Weapon Mining Laser Slashing Weapon Ripper Build | -11 -10 -10 -10 ------- Run | Yrd Mat Min Sub Slots Evolved . | . . . . Power . | . . . . Propulsion . | . . . . Utility . | . . . . Weapon . | . . . . Parts Attached 51 | 7 19 8 17 Power 3 | 1 1 . 1 Engine 3 | 1 1 . 1 Core . | . . . . Reactor . | . . . . Propulsion 18 | 2 10 4 2 Treads 9 | 1 6 2 . Leg 4 | . . 2 2 Wheel 5 | 1 4 . . Hover . | . . . . Flight . | . . . . Utility 7 | 2 3 2 . Device 1 | 1 . . . Storage 5 | 1 2 2 . Processor 1 | . 1 . . Hackware . | . . . . Protection . | . . . . Artifact . | . . . . Weapon 23 | 2 5 2 14 Energy Gun . | . . . . Energy Cannon . | . . . . Ballistic Gun 15 | 2 2 2 9 Ballistic Cannon 2 | . 1 . 1 Launcher 2 | . 2 . . Special Weapon 3 | . . . 3 Impact Weapon . | . . . . Slashing Weapon 1 | . . . 1 Piercing Weapon . | . . . . Special Melee Weapon . | . . . . Unidentified Prototypes . | . . . . Parts Lost 8 | . 6 . 2 Power 2 | . 1 . 1 Propulsion 2 | . 2 . . Utility . | . . . . Weapon 4 | . 3 . 1 Highest Loss Streak 2 | . 2 . 1 To Critical Strikes . | . . . . Average Slot Usage (%) 94 | . 96 93 93 Engine 11 | . 13 14 7 Treads 11 | . 22 14 . Leg 12 | . . 7 28 Wheel 1 | . 4 . . Device 2 | . 8 . . Storage 14 | . 14 14 14 Processor 11 | . 5 14 14 Ballistic Gun 21 | . 19 21 22 Ballistic Cannon 3 | . 1 6 2 Launcher 1 | . 5 . . Naked Turns . | . . . . Heaviest Build 22 | 12 15 16 22 Greatest Support 40 | 10 40 40 30 Greatest Overweight (x) 1 | 1 1 1 . Average Overweight (x) . | . . . . Largest Inventory Capacity 25 | 8 25 25 8 Average Capacity 8 | 7 8 8 8 Most Carried 8 | 7 8 8 8 Average Carried 7 | 3 7 7 7 Final Capacity 8 | 8 8 8 8 Final Carried 8 | 5 7 8 8 Class Distribution -------------------- 79% | Mutant 20% | Scavenger-Mutant Dominant Class ---------------- Mutant | -10/Materials Scavenger-Mutant | -10/Mines Mutant | -10/Subcaves Resources | -11 -10 -10 -10 ----------- Run | Yrd Mat Min Sub Matter Collected 1274 | 225 606 110 333 Remotely . | . . . . Salvage Created 1203 | 114 788 27 274 Parts 64 | 7 41 4 12 Haulers Intercepted 1 | . 1 . . Recyclers Shooed . | . . . . Parts Field Recycled . | . . . . Retrieved Matter . | . . . . Parts Self-Destructed 2 | . . . 2 Prevented . | . . . . Kills | -11 -10 -10 -10 ------- Run | Yrd Mat Min Sub Combat Hostiles Destroyed 29 | . 19 3 7 Guns 24 | . 15 2 7 Cannons 2 | . 1 1 . AOE 3 | . 3 . . Classes Destroyed 7 | 2 4 . 1 Tunneler 1 | 1 . . . Hauler 1 | . 1 . . Recycler 2 | 1 1 . . Operator 3 | . 3 . . Swarmer 8 | . 3 3 2 Grunt 16 | . 16 . . Subdweller 5 | . . . 5 Best Kill Streak 4 | 2 4 3 2 Combat Bots Only 3 | . 3 3 2 Max Kills in Single Turn 2 | 1 2 2 1 Gunslinging 1 | . 1 . . Exploded 2 | . 2 . . Melee . | . . . . Uniques/NPCs Destroyed . | . . . . Combat | -11 -10 -10 -10 -------- Run | Yrd Mat Min Sub Hostile Shots Fired 175 | . 123 13 39 Missed 44 | . 31 3 10 Damage Taken 1836 | . 1141 79 616 Core 263 | . 142 31 90 Absorbed by Shields . | . . . . Regen/Repaired (Parts) 48 | . 48 . . Core Remaining (%) 100 | 100 . . . Volleys Fired 159 | 7 93 6 53 Largest 2 | 2 2 2 2 Hottest 100 | 40 55 55 100 Shots Fired 263 | 14 145 12 92 Gun 227 | 14 129 6 78 Cannon 15 | . 9 6 . Launcher 7 | . 7 . . Special 14 | . . . 14 Kinetic 242 | 14 138 12 78 Thermal 14 | . . . 14 Explosive 7 | . 7 . . Electromagnetic . | . . . . Robot Hit Streak 18 | 3 8 2 18 Robot Miss Streak 4 | 1 3 2 4 Penetration Max . | . . . . Secondary Targets 3 | . 3 . . Max Gunslinging Chain 1 | . 1 . . Shots Hit Robots 175 | 9 101 6 59 Core Hits 72 | 4 47 4 17 Critical Kills . | . . . . Critical Parts Destroyed 2 | . 2 . . Critical Strikes 3 | . 2 . 1 Destroy 3 | . 2 . 1 Melee Attacks . | . . . . Impact . | . . . . Slashing . | . . . . Piercing . | . . . . Sneak Attacks . | . . . . Combat Hostiles . | . . . . Follow-up Attacks . | . . . . Damage Inflicted 2665 | 89 1382 71 1123 Guns 2204 | 89 955 37 1123 Cannons 118 | . 84 34 . Explosions 343 | . 343 . . Melee . | . . . . Ramming . | . . . . Kinetic 2322 | 89 1039 71 1123 Thermal . | . . . . Explosive 343 | . 343 . . Electromagnetic . | . . . . Impact . | . . . . Slashing . | . . . . Piercing . | . . . . Highest Corruption . | . . . . Average Corruption . | . . . . Corruption Purged . | . . . . Corruption Blocked . | . . . . Overload Shots . | . . . . Overflow Damage 12 | . 12 . . Projectiles . | . . . . Explosions 12 | . 12 . . Melee . | . . . . Knockbacks 2 | . 1 1 . Impact . | . . . . Kinetic 2 | . 1 1 . Secondary . | . . . . Self-Inflicted Damage 109 | . 109 . . Shots 5 | . 5 . . Rammed . | . . . . Targets Rammed . | . . . . Kicked . | . . . . Crushed . | . . . . Highest Temperature 52 | . 52 14 . Average Temperature 15 | . 16 10 . Received Heat Transfer 624 | . 564 . 60 Siege Activations . | . . . . Robots Corrupted . | . . . . Combat Hostiles . | . . . . Parts Fried . | . . . . Impact Corruptions . | . . . . Robots Melted . | . . . . Combat Hostiles . | . . . . Parts Melted . | . . . . Heat Transferred . | . . . . Parts Sabotaged . | . . . . Parts Stolen . | . . . . Parts Stripped . | . . . . Power Chain Reactions . | . . . . Alert | -11 -10 -10 -10 ------- Run | Yrd Mat Min Sub Peak Influence 319 | 10 319 209 . Initial 124 | . 6 124 . Average 147 | 4 211 90 . Maximum Alert Level 1 | . 1 1 . Low Security (%) 50 | 100 37 59 . Level 1 49 | . 62 40 . Level 2 . | . . . . Level 3 . | . . . . Level 4 . | . . . . Level 5 . | . . . . High Security . | . . . . Max Security . | . . . . Squads Dispatched 7 | . 7 . . Investigation 4 | . 4 . . Extermination . | . . . . Reinforcement 3 | . 3 . . Assault . | . . . . Garrison . | . . . . Intercept . | . . . . Searches Triggered . | . . . . Construction Impeded . | . . . . Haulers Reinforced . | . . . . Active Scanning Responses . | . . . . Cargo Convoy Interrupts . | . . . . Stealth | -11 -10 -10 -10 --------- Run | Yrd Mat Min Sub Distress Signals 3 | . 3 . . Communications Jammed . | . . . . Distress Signals . | . . . . Times Spotted 47 | . 34 5 8 Peak Tracking Total 5 | . 5 3 2 Tactical Retreats . | . . . . Traps | -11 -10 -10 -10 ------- Run | Yrd Mat Min Sub Traps Triggered 4 | . . . 4 Indirectly . | . . . . Trap Hack Attempts . | . . . . Triggered . | . . . . Disarmed . | . . . . Reprogrammed . | . . . . Reused . | . . . . Traps Extracted . | . . . . Installed . | . . . . Triggered . | . . . . Machines | -11 -10 -10 -10 ---------- Run | Yrd Mat Min Sub Machines Disabled 2 | . 1 1 . Max in Single Turn 1 | . 1 1 . Machines Repaired . | . . . . Machines Dismantled . | . . . . Machines Sabotaged . | . . . . Overloaded Fab Kills . | . . . . Hacking | -11 -10 -10 -10 --------- Run | Yrd Mat Min Sub Machines Accessed 8 | . 8 . . Terminals 5 | . 5 . . Fabricators . | . . . . Repair Stations 1 | . 1 . . Recycling Units 2 | . 2 . . Scanalyzers . | . . . . Garrison Access . | . . . . Total Hacks 23 | . 23 . . Successful 14 | . 14 . . Failed 9 | . 9 . . Catastrophic . | . . . . Database Lockouts . | . . . . Manual 13 | . 13 . . Terminals 14 | . 14 . . Fabricators . | . . . . Repair Stations 6 | . 6 . . Recycling Units 3 | . 3 . . Scanalyzers . | . . . . Garrison Access . | . . . . Terminal Hacks 4 | . 4 . . Locate Traps 1 | . 1 . . Hauler Manifests 1 | . 1 . . Zone Layout 2 | . 2 . . Fabricator Hacks . | . . . . Repair Station Hacks 5 | . 5 . . Scan Component 3 | . 3 . . Repair 2 | . 2 . . Recycling Unit Hacks 1 | . 1 . . Report Inventory 1 | . 1 . . Scanalyzer . | . . . . Garrison Access Hacks . | . . . . Unauthorized Hacks 4 | . 4 . . Terminals 2 | . 2 . . Botnet 1 | . 1 . . Operators 1 | . 1 . . Fabricators . | . . . . Repair Stations . | . . . . Recycling Units 2 | . 2 . . Tunnel 2 | . 2 . . Scanalyzers . | . . . . Garrison Access . | . . . . Data Cores Recovered . | . . . . Used . | . . . . Hacking Detections 6 | . 6 . . Full Trace Events 2 | . 2 . . Feedback Events . | . . . . Feedback Blocked . | . . . . Robot Schematics Acquired . | . . . . Robots Built . | . . . . Authchips . | . . . . Time . | . . . . Total Robot Build Rating . | . . . . Part Schematics Acquired . | . . . . Parts Built . | . . . . Authchips . | . . . . Time . | . . . . Total Part Build Rating . | . . . . Parts Repaired 2 | . 2 . . Time 62 | . 62 . . Parts Recycled . | . . . . Recycled Matter . | . . . . Retrieved Matter . | . . . . Retrieved Components . | . . . . Parts Scanalyzed . | . . . . Part Schematics Acquired . | . . . . Parts Damaged . | . . . . Bothacking | -11 -10 -10 -10 ------------ Run | Yrd Mat Min Sub Used RIF Installer . | . . . . Robots Hacked . | . . . . Non-combat . | . . . . Combat . | . . . . Robot Hacks Applied . | . . . . Relay Couplers Released . | . . . . Fabnet Peak Effective % . | . . . . Robots Rewired . | . . . . Allies Hacked . | . . . . Hacks Repelled . | . . . . Allies | -11 -10 -10 -10 -------- Run | Yrd Mat Min Sub Total Allies 2 | . . 2 . Largest Group 2 | . . 2 1 Highest-Rated Group 43 | . . 43 31 Highest-Rated Ally 31 | . . 31 31 Total Orders . | . . . . Ally Attacks 7 | . . . 7 Total Damage 63 | . . . 63 Kills 1 | . . . 1 Allies Corrupted . | . . . . Allies Melted . | . . . . Intel | -11 -10 -10 -10 ------- Run | Yrd Mat Min Sub Robot Analysis Total . | . . . . Derelict Logs Recovered 2 | . . 1 1 Drone Launches . | . . . . Drone Recoveries . | . . . . Exploration | -11 -10 -10 -10 ------------- Run | Yrd Mat Min Sub Turns Passed 3200 | 95 1060 954 1091 Spaces Moved 1881 | 66 526 603 686 Core 16 | 16 . . . Treads 698 | . 298 400 . Legs 889 | . . 203 686 Wheels 278 | 50 228 . . Hover . | . . . . Flight . | . . . . Fastest Speed 50 | 50 95 120 120 Average Speed 130 | 87 131 146 120 Slowest Speed 190 | 100 160 190 120 Overloaded Moves . | . . . . Propulsion Burnouts . | . . . . Robots Hopped . | . . . . Cave-ins Triggered . | . . . . Exploration Rate (%) 62 | 4 93 100 54 Regions Visited 3 Branch Regions 2 Pre-discovered Areas 4 | . 2 2 . Known Exits Taken 2 | . 1 1 . Unknown Exits Taken 1 | 1 . . . Scrap Searched 6 | . . 1 5 Spaces Dug 8 | . 8 . . Terrain Destroyed 36 | . 36 . . Melee . | . . . . Projectile . | . . . . AOE 36 | . 36 . . Terrain Rammed . | . . . . Walls Destroyed . | . . . . Machines Disabled . | . . . . Actions | -11 -10 -10 -10 --------- Run | Yrd Mat Min Sub Total 2337 | 90 757 660 830 Wait 203 | . 103 36 64 Move 1878 | 65 525 602 686 Hop . | . . . . Pick Up 25 | 11 11 2 1 Fast Attach 13 | 1 1 4 7 Attach 12 | 6 5 . 1 Detach . | . . . . Swap 26 | . 13 4 9 Drop 21 | . 6 6 9 Fire 159 | 7 93 6 53 Melee . | . . . . Ram . | . . . . Kick . | . . . . Crush . | . . . . Escape Stasis . | . . . . Rewire . | . . . . Trap . | . . . . Miscellaneous . | . . . . Route ------- -11/Scrapyard -10/Materials (discovered 5 exits: *Mat x3 / *Min x2) -10/Mines (discovered 3 exits: *Mat x2 / *Sub) -10/Subcaves (discovered 1 exit: *Mat) History --------- Turn | Location | Event 7 | -11/Scrapyard | Discovered new exit (range 16) 96 | -11/Scrapyard | Entered Materials 304 | -10/Materials | Discovered new exit (range 10) 328 | -10/Materials | Build established: Mutant 651 | -10/Materials | Repaired Datajack 688 | -10/Materials | Repaired Broken Grenade Launcher 709 | -10/Materials | Discovered new exit (range 16) 814 | -10/Materials | Discovered new exit (range 8) 825 | -10/Materials | Identified exit to Mines 949 | -10/Materials | Discovered exit to Mines (range 9) 994 | -10/Materials | Discovered new exit (range 16) 1033 | -10/Materials | Core integrity fell below 50% 1156 | -10/Materials | Entered Mines 1189 | -10/Mines | Discovered new exit (range 11) 1197 | -10/Mines | Met a Derelict bent on vengeance 1205 | -10/Mines | Identified exit to Materials 1222 | -10/Mines | Discovered exit to Materials (range 8) 1557 | -10/Mines | Joined a pair of Derelicts in attacking an 0b10 outpost 1700 | -10/Mines | Learned location of Storage (-9) 1872 | -10/Mines | Found a damaged Exp. Sensor Array with a note attached 1875 | -10/Mines | Found Prototype Device 1895 | -10/Mines | Build established: Scavenger-Mutant 2101 | -10/Mines | Discovered new exit (range 6) 2109 | -10/Mines | Identified exit to Subcaves 2110 | -10/Mines | Entered Subcaves 2110 | -10/Subcaves | Accompanied by 1 ally 2115 | -10/Subcaves | Led the pair of lost Derelicts to an unsafe place 2116 | -10/Subcaves | Shifting Twisted Machinery released Battle Rifle 2120 | -10/Subcaves | Shifting Twisted Machinery released Mak. Light Armor Plating 2128 | -10/Subcaves | Learned Materials emergency access door positions 2671 | -10/Subcaves | Build established: Mutant 2751 | -10/Subcaves | Core integrity fell below 20% 3053 | -10/Subcaves | Discovered new exit (range 5) 3107 | -10/Subcaves | Identified exit to Materials 3201 | -10/Subcaves | Destroyed by Piercing Trap Last Messages --------------- 03126_ Critical hit (Impale). 03129_ Triggered Piercing Trap. 03129_ Spikes shoot up from the floor. 03129_ Mining Laser destroyed. 03184_ Searching scrap... 03184_ Found Ripper. 03184_ Found 32 Matter. 03185_ Acquired 25 matter. 03187_ Acquired Ripper. 03199_ Searching scrap... 03199_ Found Scrap Shield. 03199_ Found Sub. Shrapnel Launcher. 03199_ Found 22 Matter. 03200_ Acquired 10 matter. 03200_ Searching scrap... 03200_ Found Mak. Hacking Suite. 03200_ Found 12 Matter. 03201_ Triggered Piercing Trap. 03201_ Spikes shoot up from the floor. 03201_ Critical hit (Impale). Map ----- +----------------------------------------------------+ | | | | | | | | | | | | | | | | | | | | | | | | | | | | | ?????????????????????????????????????????????????? | | ?????????????????????????????????????????????????? | | ?????????????????????????????????????????????????? | | ?????????????????????????????????????????????????? | | ?????????????????????????????????????????????????? | | ?????????????????????????????????????????????????? | | ???????????????????????####??????????????????????? | | ???????????????????????#< ?????????###??????????? | | ???????????????????????#< #?????????#"#??????????? | | ???????????????????????#<<####???####%#??????????? | | ???????????????????????#< %%]#####" #??????????? | | ???????????????????????# @ ! # "##??????????? | | ???????????????????????##< ## #???????????? | | ????????????????????????##<<<## <####???????????? | | ???????????????????????#######" "###????????????? | | ???????????????????????# ### " ##???????????? | | ???????????????????##### #?????????? | | ????????????????#### # ### #?????????? | | ????????????????"""" ??????? | | ???????????????? """" ????? | | ?????????????????###### ## #### ###?????? | | ??????????????????????# ####### #???? ??????? | | ?????????????????????## #????? ##?????? ?????? | | ??????????? ????????#"" ##???? #?????????????? | | ?????????? #???????#"" ##???? ?????????????? | | ?????????? ####???#""" ##??? ????????????? | | ??????????? ??##""" ##?? ? ???????????? | | ???????????? # ??#""""" #?? ??? ??????????? | | ?????????????# #?# ## #?????????????????? | | ?????????????## ### ##? #????????????????? | | ?????????????# ?## #??? #???????????????? | | ?????????????# ?## ##???###???????????????? | | ??????????????# ## ##??????????????????????? | | ??????????????# ##?????????????????##???## | | ??????????????# ##?????????????????## ??## | | ??????????????# #####??????????????## ?## | +----------------------------------------------------+ Best States ------------- Heat Dissipation 25 Energy Generation 18 Energy Capacity 250 Matter Stores 300 Matter Capacity 300 Sight Range 16 Terrain Scan Density 10 Evasion (%) 55 Recoil Reduction 2 Item Schematics ----------------- None Robot Schematics ------------------ None Fabricated ------------ Nothing Alien Tech Used ----------------- None Achievements -------------- None Challenges ------------ None Game ------ Seed DroneSpikedMatrix Manual? 0 Play Time 00:27:33 Cumulative 22.6 hours Start 2024.04.03 @ 17:56:14 End 2024.04.03 @ 20:30:56 Sessions 2 Manual Loads 0 Difficulty Rogue Special Mode None Game No. 45 Rogue 45 Adventurer 0 Explorer 0 Win Type - Total 0 Types 0/0/0/0/0/0/0/0/0 Lore% 19 Gallery% 23 Achievement% 20 Wizard Run 0 Options --------- Layout 0 ASCII 0 Keyboard 0 Movement Mouse Keybinds 0 Fullscreen 1 Font 24/Smallcaps Map View 76x50 Zoom Use 0% Tactical HUD 1 Map Filters NONE Filters NONE Steam 1 RUN: 024f87b9-c2d0-4ad2-a9cb-06d05710638c